Cogmind - Beta 13 @@@ ROGUE MODE // 2024.05.04 @ 12:59:06 Player: JM Result: Destroyed by Y-45 Defender with Heavy Assault Rifle Performance ------------- Evolutions (1) 500 Regions Visited (3) 600 Robots Destroyed (17) 85 Value Destroyed (475) 475 Prototype IDs (2) 40 Alien Tech Used (0) 0 Bonus (0) 0 TOTAL SCORE: 1700 Bonus ------- None Cogmind --------- Core Integrity 0/400 Matter 147/300 Energy 100/100 System Corruption 0% Temperature Cool (9) Movement Core (250) Ox4 Location -9/Materials Parts ------- > --- POWER (1) -------- (None) > --- PROPULSION (4) --- (None) > --- UTILITY (2) ------ Medium Storage Unit > --- WEAPON (2) ------- Autogun > --- INVENTORY (10) --- Ion Engine Aluminum Leg Blade Trap Blade Trap Blade Trap Peak State ------------ > --- POWER ------------ Light Angular Momentum Engine > --- PROPULSION ------- Aluminum Leg Carbon-fiber Leg > --- UTILITY ---------- Small Storage Unit > --- WEAPON ----------- Assault Rifle Light Assault Rifle > --- INVENTORY -------- Light Ion Engine Assault Rifle Light Assault Rifle Grenade Launcher Grenade Launcher Blade Trap Blade Trap Blade Trap [Rating: 12] Favorites ----------- Power Light Ion Engine Engine Light Ion Engine Propulsion Aluminum Leg Leg Aluminum Leg Utility Small Storage Unit Storage Small Storage Unit Weapon Assault Rifle Ballistic Gun Assault Rifle Launcher Grenade Launcher Build | -11 -10 -10 -9 ------- Run | Yrd Mat Min Mat Slots Evolved 2 | . . . 2 Power . | . . . . Propulsion 2 | . . . 2 Utility . | . . . . Weapon . | . . . . Parts Attached 21 | 6 . 2 13 Power 4 | 1 . 1 2 Engine 4 | 1 . 1 2 Core . | . . . . Reactor . | . . . . Propulsion 3 | 2 . 1 . Treads . | . . . . Leg 3 | 2 . 1 . Wheel . | . . . . Hover . | . . . . Flight . | . . . . Utility 2 | 1 . . 1 Device . | . . . . Storage 2 | 1 . . 1 Processor . | . . . . Hackware . | . . . . Protection . | . . . . Artifact . | . . . . Weapon 12 | 2 . . 10 Energy Gun . | . . . . Energy Cannon . | . . . . Ballistic Gun 10 | 2 . . 8 Ballistic Cannon . | . . . . Launcher 2 | . . . 2 Special Weapon . | . . . . Impact Weapon . | . . . . Slashing Weapon . | . . . . Piercing Weapon . | . . . . Special Melee Weapon . | . . . . Unidentified Prototypes . | . . . . Parts Lost 10 | . . 1 9 Power 2 | . . . 2 Propulsion 3 | . . 1 2 Utility . | . . . . Weapon 5 | . . . 5 Highest Loss Streak 8 | . . 1 8 To Critical Strikes . | . . . . Average Slot Usage (%) 73 | . 85 83 58 Engine 12 | . 14 14 9 Leg 23 | . 28 26 17 Storage 12 | . 14 14 11 Ballistic Gun 24 | . 28 28 20 Naked Turns . | . . . . Heaviest Build 21 | 11 11 17 21 Greatest Support 25 | 20 20 25 25 Greatest Overweight (x) 4 | . . 1 4 Average Overweight (x) . | . . . . Largest Inventory Capacity 10 | 8 8 8 10 Average Capacity 8 | 6 8 8 9 Most Carried 9 | 5 5 8 9 Average Carried 6 | 1 2 7 7 Final Capacity 10 | 8 8 8 10 Final Carried 8 | 1 5 8 5 Class Distribution -------------------- 100% | Mutant Dominant Class ---------------- Mutant | -10/Materials Mutant | -10/Mines Mutant | -9/Materials Resources | -11 -10 -10 -9 ----------- Run | Yrd Mat Min Mat Matter Collected 530 | 210 75 126 119 Remotely . | . . . . Salvage Created 555 | . 94 129 332 Parts 31 | . 6 6 19 Haulers Intercepted . | . . . . Recyclers Shooed . | . . . . Parts Field Recycled . | . . . . Retrieved Matter . | . . . . Parts Self-Destructed . | . . . . Prevented . | . . . . Kills | -11 -10 -10 -9 ------- Run | Yrd Mat Min Mat Combat Hostiles Destroyed 16 | . 4 5 7 Guns 15 | . 4 5 6 AOE 1 | . . . 1 Classes Destroyed 5 | . 2 . 3 Builder 1 | . . . 1 Swarmer 6 | . 3 3 . Grunt 5 | . 1 2 2 Duelist 1 | . . . 1 Sentry 4 | . . . 4 Best Kill Streak 6 | . 3 6 3 Combat Bots Only 6 | . 3 6 3 Max Kills in Single Turn 2 | . 1 2 2 Gunslinging 1 | . . 1 1 Exploded 1 | . . . 1 Melee . | . . . . Uniques/NPCs Destroyed . | . . . . Combat | -11 -10 -10 -9 -------- Run | Yrd Mat Min Mat Hostile Shots Fired 148 | . 33 31 84 Missed 39 | . 11 7 21 Damage Taken 1735 | . 213 276 1246 Core 512 | . 61 48 403 Absorbed by Shields . | . . . . Core Remaining (%) 78 | 100 . 56 . Volleys Fired 68 | . 19 15 34 Largest 2 | . 2 2 2 Hottest 60 | . 40 40 60 Shots Fired 125 | . 38 30 57 Gun 123 | . 38 30 55 Cannon . | . . . . Launcher 2 | . . . 2 Special . | . . . . Kinetic 123 | . 38 30 55 Thermal . | . . . . Explosive 2 | . . . 2 Electromagnetic . | . . . . Robot Hit Streak 10 | . 3 4 10 Robot Miss Streak 5 | . 5 3 2 Penetration Max . | . . . . Secondary Targets 3 | . . 2 1 Max Gunslinging Chain 1 | . . 1 1 Shots Hit Robots 81 | . 16 18 47 Core Hits 30 | . 6 7 17 Critical Kills . | . . . . Critical Parts Destroyed . | . . . . Critical Strikes . | . . . . Melee Attacks . | . . . . Impact . | . . . . Slashing . | . . . . Piercing . | . . . . Sneak Attacks . | . . . . Combat Hostiles . | . . . . Follow-up Attacks . | . . . . Damage Inflicted 1146 | . 168 206 772 Guns 1012 | . 168 206 638 Cannons . | . . . . Explosions 134 | . . . 134 Melee . | . . . . Ramming . | . . . . Kinetic 1012 | . 168 206 638 Thermal . | . . . . Explosive 134 | . . . 134 Electromagnetic . | . . . . Impact . | . . . . Slashing . | . . . . Piercing . | . . . . Highest Corruption . | . . . . Average Corruption . | . . . . Corruption Purged . | . . . . Corruption Blocked . | . . . . Overload Shots . | . . . . Overflow Damage 29 | . . . 29 Projectiles . | . . . . Explosions 29 | . . . 29 Melee . | . . . . Knockbacks . | . . . . Impact . | . . . . Kinetic . | . . . . Secondary . | . . . . Self-Inflicted Damage 77 | . . . 77 Shots 2 | . . . 2 Rammed . | . . . . Targets Rammed . | . . . . Kicked . | . . . . Crushed . | . . . . Highest Temperature 38 | . 12 38 20 Average Temperature 13 | . 6 18 9 Received Heat Transfer 510 | . 78 141 291 Siege Activations . | . . . . Robots Corrupted . | . . . . Combat Hostiles . | . . . . Parts Fried . | . . . . Impact Corruptions . | . . . . Robots Melted . | . . . . Combat Hostiles . | . . . . Parts Melted . | . . . . Heat Transferred . | . . . . Parts Sabotaged . | . . . . Parts Stolen . | . . . . Parts Stripped . | . . . . Power Chain Reactions . | . . . . Alert | -11 -10 -10 -9 ------- Run | Yrd Mat Min Mat Peak Influence 235 | . 100 149 235 Initial 57 | . . 39 57 Average 99 | . 23 116 124 Maximum Alert Level 1 | . . . 1 Low Security (%) 95 | 100 100 100 88 Level 1 4 | . . . 11 Level 2 . | . . . . Level 3 . | . . . . Level 4 . | . . . . Level 5 . | . . . . High Security . | . . . . Max Security . | . . . . Squads Dispatched 2 | . 2 . . Investigation . | . . . . Extermination . | . . . . Reinforcement 2 | . 2 . . Assault . | . . . . Garrison . | . . . . Intercept . | . . . . Searches Triggered . | . . . . Construction Impeded . | . . . . Haulers Reinforced . | . . . . Active Scanning Responses . | . . . . Cargo Convoy Interrupts . | . . . . Stealth | -11 -10 -10 -9 --------- Run | Yrd Mat Min Mat Distress Signals 2 | . . . 2 Communications Jammed . | . . . . Distress Signals . | . . . . Times Spotted 25 | . 7 5 13 Peak Tracking Total 11 | . 6 3 11 Tactical Retreats . | . . . . Traps | -11 -10 -10 -9 ------- Run | Yrd Mat Min Mat Traps Triggered . | . . . . Indirectly . | . . . . Trap Hack Attempts . | . . . . Triggered . | . . . . Disarmed . | . . . . Reprogrammed . | . . . . Reused . | . . . . Traps Extracted . | . . . . Installed . | . . . . Triggered . | . . . . Most Traps Carried 3 | . . 3 3 Machines | -11 -10 -10 -9 ---------- Run | Yrd Mat Min Mat Machines Disabled . | . . . . Max in Single Turn . | . . . . Machines Repaired . | . . . . Machines Dismantled . | . . . . Machines Sabotaged . | . . . . Overloaded Fab Kills . | . . . . Hacking | -11 -10 -10 -9 --------- Run | Yrd Mat Min Mat Machines Accessed 1 | . . . 1 Terminals 1 | . . . 1 Fabricators . | . . . . Repair Stations . | . . . . Recycling Units . | . . . . Scanalyzers . | . . . . Garrison Access . | . . . . Total Hacks 6 | . . . 6 Successful 5 | . . . 5 Failed 1 | . . . 1 Catastrophic . | . . . . Database Lockouts . | . . . . Manual . | . . . . Terminals 6 | . . . 6 Fabricators . | . . . . Repair Stations . | . . . . Recycling Units . | . . . . Scanalyzers . | . . . . Garrison Access . | . . . . Terminal Hacks 5 | . . . 5 Record 3 | . . . 3 Prototype ID Bank 1 | . . . 1 Alert Level 1 | . . . 1 Fabricator Hacks . | . . . . Repair Station Hacks . | . . . . Recycling Unit Hacks . | . . . . Scanalyzer . | . . . . Garrison Access Hacks . | . . . . Unauthorized Hacks . | . . . . Terminals . | . . . . Fabricators . | . . . . Repair Stations . | . . . . Recycling Units . | . . . . Scanalyzers . | . . . . Garrison Access . | . . . . Data Cores Recovered . | . . . . Used . | . . . . Hacking Detections . | . . . . Full Trace Events . | . . . . Feedback Events . | . . . . Feedback Blocked . | . . . . Robot Schematics Acquired . | . . . . Robots Built . | . . . . Authchips . | . . . . Time . | . . . . Total Robot Build Rating . | . . . . Part Schematics Acquired . | . . . . Parts Built . | . . . . Authchips . | . . . . Time . | . . . . Total Part Build Rating . | . . . . Parts Repaired . | . . . . Time . | . . . . Parts Recycled . | . . . . Recycled Matter . | . . . . Retrieved Matter . | . . . . Retrieved Components . | . . . . Parts Scanalyzed . | . . . . Part Schematics Acquired . | . . . . Parts Damaged . | . . . . Bothacking | -11 -10 -10 -9 ------------ Run | Yrd Mat Min Mat Used RIF Installer . | . . . . Robots Hacked . | . . . . Non-combat . | . . . . Combat . | . . . . Robot Hacks Applied . | . . . . Relay Couplers Released . | . . . . Fabnet Peak Effective % . | . . . . Robots Rewired . | . . . . Allies Hacked . | . . . . Hacks Repelled . | . . . . Allies | -11 -10 -10 -9 -------- Run | Yrd Mat Min Mat Total Allies . | . . . . Largest Group . | . . . . Highest-Rated Group . | . . . . Highest-Rated Ally . | . . . . Total Orders . | . . . . Ally Attacks . | . . . . Total Damage . | . . . . Kills . | . . . . Allies Corrupted . | . . . . Allies Melted . | . . . . Intel | -11 -10 -10 -9 ------- Run | Yrd Mat Min Mat Robot Analysis Total . | . . . . Derelict Logs Recovered . | . . . . Drone Launches . | . . . . Drone Recoveries . | . . . . Exploration | -11 -10 -10 -9 ------------- Run | Yrd Mat Min Mat Turns Passed 926 | 55 128 389 354 Spaces Moved 528 | 43 60 249 176 Core 18 | 15 . . 3 Treads . | . . . . Legs 510 | 28 60 249 173 Wheels . | . . . . Hover . | . . . . Flight . | . . . . Fastest Speed 50 | 50 120 120 120 Average Speed 120 | 95 120 124 121 Slowest Speed 250 | 120 120 190 250 Overloaded Moves . | . . . . Propulsion Burnouts . | . . . . Robots Hopped . | . . . . Cave-ins Triggered . | . . . . Exploration Rate (%) 24 | 4 13 65 17 Regions Visited 3 Branch Regions 1 Pre-discovered Areas . | . . . . Known Exits Taken . | . . . . Unknown Exits Taken 3 | 1 1 1 . Scrap Searched 1 | . . 1 . Spaces Dug . | . . . . Terrain Destroyed 15 | . . . 15 Melee . | . . . . Projectile . | . . . . AOE 15 | . . . 15 Terrain Rammed . | . . . . Walls Destroyed . | . . . . Machines Disabled . | . . . . Actions | -11 -10 -10 -9 --------- Run | Yrd Mat Min Mat Total 698 | 56 82 301 259 Wait 52 | 2 . 27 23 Move 525 | 42 59 248 176 Hop . | . . . . Pick Up 23 | 6 4 6 7 Fast Attach 5 | 1 . 1 3 Attach 12 | 5 . . 7 Detach . | . . . . Swap 4 | . . 1 3 Drop 9 | . . 3 6 Fire 68 | . 19 15 34 Melee . | . . . . Ram . | . . . . Kick . | . . . . Crush . | . . . . Escape Stasis . | . . . . Rewire . | . . . . Trap . | . . . . Miscellaneous . | . . . . Route ------- -11/Scrapyard -10/Materials -10/Mines -9/Materials History --------- Turn | Location | Event 8 | -11/Scrapyard | Discovered new exit (range 16) 56 | -11/Scrapyard | Entered Materials 164 | -10/Materials | Discovered new exit (range 7) 184 | -10/Materials | Entered Mines 213 | -10/Mines | Met a Derelict bent on vengeance 304 | -10/Mines | Build established: Mutant 307 | -10/Mines | Found a hidden stash of uninstalled traps 412 | -10/Mines | Discovered new exit (range 11) 573 | -10/Mines | Entered Materials 573 | -9/Materials | Evolved 2 slots: Propulsion x2 896 | -9/Materials | Core integrity fell below 50% 914 | -9/Materials | Core integrity fell below 20% 927 | -9/Materials | Destroyed by Y-45 Defender with Heavy Assault Rifle Last Messages --------------- Ion Engine destroyed. Assault Rifle severed. G-34 Mercenary destroyed. Assault Rifle destroyed. Assault Rifle severed. [Achievement: Let's See Who's Tougher] G-34 Mercenary destroyed. Grenade Launcher destroyed. Destroyed Grenade Launcher. Grenade Launcher destroyed. Destroyed Grenade Launcher. The unstable cave ceiling collapses. K-01 Serf collects debris. Acquired Autogun. K-01 Serf collects debris. L-31 Rogue destroyed. K-01 Serf collects debris. Acquired Aluminum Leg. K-01 Serf collects debris. The unstable cave ceiling collapses. Map ----- +----------------------------------------------------+ | ?????????????????????????????????????? | | ?????????????????????????????????????? | | ?????????????????????????????????????? | | ?????????????????????????????????????? | | ?????????????????????????????????????? | | ?????????????????????????????????????? | | ?????????????????????????????????????? | | ?????????????????????????????????????? | | ???????? ??????????????????????????? | | ???????# ??????????????????????????? | | ???????# ??????????????????????????? | | ??????## #?????????????????????????? | | ??????# ?????????????????????????? | | ??????# ?????????????????????????? | | ??????# ?????????????????????????? | | ??????# ?????????????????????????? | | ??????? ?????????????????????????? | | ???????# #?????????????????????????? | | ???????# #?????????????????????????? | | ???????# #?????????????????????????? | | ???????+ #???###???????????????????? | | ???????? #### ####?????????????????? | | ?????????# ! #?????????????????? | | ?????????#! [ ###### "????????? | | ????????##!%!%=%k + "T???????? | | ????????# [ #@%a k ###### ????????? | | ????????## g Y #?????????????????? | | ???????+ ##### ###?????????????????? | | ???????### #???# #???????????????????? | | ?????????# #???#+########????????????? | | ?????????# #???# #????????????? | | ?????????# ##### """ #????????????? | | ?????????# # """ #????????????? | | ?????????# # """ #????????????? | | ?????????# + #????????????? | | ?????????# # """ #????????????? | | ?????????# # """ #????????????? | | ?????????## ## """ #????????????? | | ?????###??# ## % #????????????? | | ???# ??# ###########????????????? | | ???# """?# #??????????????????????? | | ???# """?# #??????????????????????? | | ???# """ # #??????????????????????? | | ???# # #??????????????????????? | | ???# + #??????????????????????? | | ?????###### !####???????????????????? | | ??????????# %[ !##??????????????????? | | ??????????# ==! !#??????????????????? | | ??????????# !#??????????????????? | | ????????? + !#??????????????????? | +----------------------------------------------------+ Best States ------------- Heat Dissipation 28 Energy Generation 18 Energy Capacity 250 Matter Stores 300 Matter Capacity 300 Sight Range 16 Terrain Scan Density 10 Evasion (%) 55 Item Schematics ----------------- None Robot Schematics ------------------ None Fabricated ------------ Nothing Alien Tech Used ----------------- None Achievements -------------- Let's See Who's Tougher Challenges ------------ None Game ------ Seed DiametricStealthUnit Manual? 0 Play Time 00:21:02 Cumulative 2.6 hours Start 2024.05.04 @ 12:39:26 End 2024.05.04 @ 12:59:06 Sessions 1 Manual Loads 0 Difficulty Rogue Special Mode None Game No. 3 Rogue 3 Adventurer 0 Explorer 0 Win Type - Total 0 Types 0/0/0/0/0/0/0/0/0 Lore% 1 Gallery% 4 Achievement% 4 Wizard Run 0 Options --------- Layout 0 ASCII 0 Keyboard 0 Movement Mouse Keybinds 0 Fullscreen 1 Font 24/Smallcaps Map View 76x50 Zoom Use 0% Tactical HUD 0 Map Filters NONE Filters NONE Steam 1 RUN: f1688263-ec53-4c1f-b8f8-922e6748c3bb